Workbook

Sheet SNP
A1: Species
A2: .plt Filename
A3: Date
A5: SNP Preamp Protocol
F7: # of Primers | G7: 192
B9: LSP+STA | C9: Concentration | G9: Volume
C10: Stock | E10: Final | G10: Each Primer | I10: Total
B11: Primer storage stock | C11: 100 | D11: uM | E11: =0.2*10/5 -> 0.4 | F11: uM | G11: =E11*I13/C11 -> 2.4 | H11: uL | I11: =G7*G11 -> 460.8 | J11: uL
B12: H2O or low TE | I12: =I13-I11 -> 139.2 | J12: uL
H13: total | I13: 600 | J13: uL
C16: Reactions | I16: Cycling
B17: Number of Reactions | C17: 1 | D17: 110 | F17: 220 | I17: 95° | J17: 15 min
B18: Qiagen 2X PCR MM (uL) | C18: 5 | D18: =C18*$D$17 -> 550 | E18: uL | F18: =C18*$F$17 -> 1100 | G18: uL | I18: 94° | J18: 30 s
B19: Primers [0.2uM each/ reaction] (uL) | C19: 5 | D19: =C19*$D$17 -> 550 | E19: uL | F19: =C19*$F$17 -> 1100 | G19: uL | I19: 57° | J19: 90 s | K19: 14 cycles
B20: Total (uL) | C20: =SUM(C18:C19) -> 10 | D20: =SUM(D18:D19) -> 1100 | E20: uL | F20: =SUM(F18:F19) -> 2200 | G20: uL | I20: 72° | J20: 90 s
I21: 72° | J21: 10 min
B22: Note: For EP1 dilute PreAmp 1:20, for 7900 dilute PreAmp 1:600
A24: Assay Loading Protocol
B25: Volume per inlet | C25: 5 | D25: uL | F25: # of chips | G25: 1
F26: # of assays | G26: 110
C28: Concentration | G28: Volume for 1 well | K28: Assay Loading Mix
C29: Stock | E29: Final | G29: 1 | H29: chip | I29: =G25 -> 1 | J29: chips | K29: =G26 -> 110 | L29: assays
B30: Assay primer Mix | C30: 40 | D30: x | E30: 8 | F30: x | G30: =(E30*$C$25)/C30 -> 1.00 | H30: uL | I30: =G30*$G$25 -> 1.00 | J30: uL
B31: 2X Assay Loading Reagent | C31: 2 | D31: x | E31: 1 | F31: x | G31: =(E31*$C$25)/C31 -> 2.50 | H31: uL | I31: =G31*$G$25 -> 2.50 | J31: uL | K31: =I31*($G$26) -> 275.00 | L31: uL
B32: dH2O | C32: N/A | E32: N/A | G32: =$C$25-SUM(G30:G31) -> 1.50 | H32: uL | I32: =G32*$G$25 -> 1.50 | J32: uL | K32: =I32*($G$26) -> 165.00 | L32: uL
E33: Total | G33: =SUM(G30:G32) -> 5.00 | H33: uL | I33: =SUM(I30:I32) -> 5.00 | J33: uL | K33: =SUM(K31:K32) -> 440.00 | L33: uL
K34: =K33/1000 -> 0.44 | L34: mL
H36: Assay Plate Loading
I37: =SUM(I31:I32) -> 4.00 | J37: uL Assay Loading Mix/well
H38: + | I38: =I30 -> 1.00 | J38: uL of each assay/well
I39: =SUM(I37:I38) -> 5.00 | J39: uL total volume
B40: *At this point, prime chip. Takes ~18 min.
A41: Sample Loading Protocol | B41: Volume per inlet | C41: 6 | D41: uL | F41: # of chips | G41: 1
F42: # of samples | G42: 110
C44: Concentration | G44: Volume | K44: Sample Loading Mix
C45: Stock | E45: Final | G45: 1 | H45: chip | I45: =G42 -> 110 | J45: samples | K45: =G41 -> 1 | L45: chips
B46: Biotium 2X Fast Probe MM | C46: 2 | D46: x | E46: 1 | F46: x | G46: =(E46*$C$41)/C46 -> 3.000 | H46: uL | I46: =G46*$G$42 -> 330.00 | J46: uL | K46: =I46*($G$41) -> 330.00 | L46: uL
B47: 20X SNP Type Sample Loading Reagent | C47: 20 | D47: x | E47: 1 | F47: x | G47: =(E47*$C$41)/C47 -> 0.300 | H47: uL | I47: =G47*$G$42 -> 33.00 | J47: uL | K47: =I47*($G$41) -> 33.00 | L47: uL
B48: 60X SNP Type Reagent | C48: 60 | D48: x | E48: 1 | F48: x | G48: =(E48*$C$41)/C48 -> 0.100 | H48: uL | I48: =G48*$G$42 -> 11.00 | J48: uL | K48: =I48*($G$41) -> 11.00 | L48: uL
B49: diH2O | C49: 50 | D49: x | E49: 0.53 | F49: x | G49: =(E49*$C$41)/C49 -> 0.064 | H49: uL | I49: =G49*$G$42 -> 7.00 | J49: uL | K49: =I49*($G$41) -> 7.00 | L49: uL
B50: ROX Reference Dye (50X) | C50: 50 | D50: x | E50: 0.3 | F50: x | G50: =(E50*$C$41)/C50 -> 0.036 | H50: uL | I50: =G50*$G$42 -> 3.96 | J50: uL | K50: =I50*($G$41) -> 3.96 | L50: uL
B51: DNA | C51: N/A | E51: N/A | G51: =C41-SUM(G46:G50) -> 2.50 | H51: uL
E52: Total | G52: =SUM(G46:G51) -> 6.00 | H52: uL | I52: =SUM(I46:I50) -> 384.96 | J52: uL | K52: =SUM(K46:K50) -> 384.96 | L52: uL
K53: =K52/1000 -> 0.38 | L53: mL
H55: Chip Loading
I56: =SUM(G46:G50) -> 3.50 | J56: uL Sample Loading Mix/well
H57: + | I57: =G51 -> 2.50 | J57: uL of each sample
I58: =SUM(I56:I57) -> 6.00 | J58: uL total volume
